fUST/lending_fUST_20241017
["ID","MTS","AMOUNT","RATE_DAILY","PERIOD"]
[340371706,1729109439983,-728.92054991,0.00019265,2]
[340371708,1729109439993,-55836.3364757,0.00019265,3]
[340371711,1729109440003,-31355.2851714,0.00019265,3]
[340371712,1729109440013,-500.0,0.00019273,2]
[340371715,1729109440023,-590.52304939,0.00019273,2]
[340371717,1729109440036,-500.0,0.00019273,2]
[340371719,1729109440046,-500.52801195,0.00019273,2]
[340371721,1729109440055,-500.0,0.00019273,2]
[340371722,1729109440066,-500.0,0.00019273,2]
[340371724,1729109440075,-500.0,0.00019273,2]
[340371726,1729109440086,-501.72657304,0.00019273,2]
[340371728,1729109440097,-500.0,0.00019274,2]
[340371729,1729109440109,-500.0,0.00019274,2]
[340371730,1729109440119,-500.0,0.00019274,2]
[340371731,1729109440129,-500.0,0.00019274,2]
[340371732,1729109440140,-500.0,0.00019274,2]
[340371733,1729109440149,-500.0,0.00019274,2]
[340371734,1729109440158,-500.0,0.00019274,2]
[340371735,1729109440168,-500.0,0.00019274,2]
[340371736,1729109440177,-500.0,0.00019274,2]
[340371737,1729109440187,-500.0,0.00019274,2]
[340371738,1729109440196,-500.0,0.00019274,2]
[340371739,1729109440205,-500.0,0.00019274,2]
[340371740,1729109440214,-500.0,0.00019274,2]
[340371741,1729109440224,-500.0,0.00019274,2]
[340371742,1729109440234,-500.0,0.00019274,2]
[340371743,1729109440244,-500.0,0.00019274,2]
[340371744,1729109440254,-500.0,0.00019274,2]
[340371745,1729109440263,-500.0,0.00019274,2]
[340371746,1729109440274,-500.0,0.00019274,2]
[340371747,1729109440283,-500.0,0.00019274,2]
[340371748,1729109440292,-500.0,0.00019274,2]
[340371749,1729109440302,-500.0,0.00019274,2]
[340371750,1729109440312,-633.91405466,0.00019274,2]
[340371751,1729109440321,-500.0,0.00019274,2]
[340371752,1729109440331,-500.0,0.00019274,2]
[340371753,1729109440340,-127955.21481439,0.00019275,2]
[340371754,1729109440349,-6476.49825537,0.00019275,2]
[340371755,1729109440359,-150.112233,0.000193,2]
[340371756,1729109440369,-160.8530913,0.000193,2]
[340371757,1729109440379,-1000.0,0.000193,2]
[340371758,1729109440388,-1000.0,0.000193,2]
[340371759,1729109440398,-1000.0,0.000193,2]
[340371760,1729109440407,-153.0,0.000193,2]
[340371761,1729109440416,-1572.99487785,0.000193,2]
[340371762,1729109440427,-191.92653144,0.00019308,2]
[340371763,1729109440437,-1000.0,0.00019308,2]
[340371764,1729109440447,-191.9265314,0.00019309,2]
[340371765,1729109440457,-191.9265314,0.0001931,2]
[340371766,1729109440466,-191.9265314,0.0001931,2]
[340371767,1729109440477,-191.9265314,0.00019311,2]
[340371768,1729109440487,-1952.17694548,0.00019328,2]
[340371769,1729109440496,-1500.0,0.0001934,2]
[340371770,1729109440506,-1370.29469908,0.0001934,2]
[340371771,1729109440516,-1509.05232353,0.0001934,2]
[340371772,1729109440525,-500.18923757,0.00019373,2]
[340371773,1729109440535,-500.0,0.00019373,2]
[340371774,1729109440545,-160.05816078,0.00019373,2]
[340371775,1729109440554,-500.0,0.00019373,2]
[340371776,1729109440564,-500.0,0.00019373,2]
[340371777,1729109440573,-500.0,0.00019373,2]
[340371778,1729109440583,-500.0,0.00019373,2]
[340371779,1729109440593,-303.08778181,0.00019373,2]
[340371780,1729109440602,-609.14232754,0.00019373,2]
[340371781,1729109440612,-500.0,0.00019373,2]
[340371782,1729109440621,-500.0,0.00019373,2]
[340371783,1729109440631,-500.0,0.00019373,2]
[340371784,1729109440640,-1997.0,0.00019387,2]
[340371785,1729109440650,-259.28741595,0.00019396,2]
[340371786,1729109440659,-234.1867271,0.00019396,2]
[340371787,1729109440668,-283.83646338,0.00019396,2]
[340371788,1729109440678,-287.09412493,0.00019396,2]
[340371789,1729109440688,-500.0,0.00019396,2]
[340371790,1729109440697,-500.0,0.00019396,2]
[340371791,1729109440707,-500.0,0.00019396,2]
[340371792,1729109440716,-206.54655259,0.00019396,2]
[340371793,1729109440726,-279181.682378,0.00019397,3]
[340371794,1729109440736,-282197.566543,0.00019397,3]
[340371795,1729109440745,-150.112233,0.000194,2]
[340371796,1729109440755,-150.112233,0.000194,2]
[340371797,1729109440765,-150.112233,0.000194,2]
[340371798,1729109440774,-150.112233,0.000194,2]
[340371799,1729109440784,-150.112233,0.000194,2]
[340371800,1729109440793,-1000.0,0.000194,2]
[340371801,1729109440803,-1000.0,0.000194,2]
[340371802,1729109440812,-678.48731304,0.000194,2]
[340371803,1729109440822,-1000.0,0.000194,2]
[340371804,1729109440832,-542.77503857,0.000194,2]
[340371805,1729109440842,-315.7819917,0.000194,2]
[340371806,1729109440852,-728.88791528,0.000194,2]
[340371807,1729109440861,-652.22921825,0.000194,2]
[340371808,1729109440870,-42680.22447996,0.00019407,2]
[340371809,1729109440880,-4310.78277172,0.00019407,2]
[340371838,1729109651784,2168.90542169,0.00019,12]
[340371853,1729110016849,162.0,0.00027,120]
[340371989,1729110638488,-346.524376,0.00018006,2]
[340371990,1729110638499,-481.8933263,0.00018082,2]
[340371992,1729110638508,-250.0,0.00018138,2]
[340371994,1729110638518,-166.666667,0.00018306,2]
[340371996,1729110638528,-346.524376,0.00018691,2]
[340371997,1729110638537,-300.0,0.00018999,2]
[340371998,1729110638547,-300.0,0.00018999,2]
[340371999,1729110638556,-15.29505797,0.00019,2]
[340372010,1729110640291,-296.37128569,0.00019,2]
[340372011,1729110640307,-17320.62889525,0.00019,2]
[340372012,1729110640317,-153.0,0.00019,2]
[340372013,1729110640326,-363.20831659,0.00019072,2]
[340372014,1729110640335,-425.21691202,0.00019072,2]
[340372015,1729110640344,-363.20831658,0.00019073,2]
[340372016,1729110640353,-363.20831658,0.00019073,2]
[340372017,1729110640362,-363.20831658,0.00019074,2]
[340372018,1729110640372,-363.20831658,0.00019074,2]
[340372019,1729110640380,-1651.05864643,0.00019082,2]
[340372020,1729110640389,-1000.0,0.00019082,2]
[340372021,1729110640398,-728.92054991,0.00019082,2]
[340372022,1729110640407,-153.0,0.000191,2]
[340372023,1729110640417,-150.0,0.00019161,2]
[340372024,1729110640426,-579.76,0.00019162,3]
[340372025,1729110640435,-289.88,0.00019162,3]
[340372026,1729110640444,-500.0,0.00019171,2]
[340372027,1729110640456,-500.0,0.00019171,2]
[340372028,1729110640465,-500.0,0.00019171,2]
[340372029,1729110640474,-500.0,0.00019171,2]
[340372030,1729110640482,-500.0,0.00019171,2]
[340372031,1729110640496,-500.0,0.00019171,2]
[340372032,1729110640505,-500.0,0.00019171,2]
[340372033,1729110640514,-500.0,0.00019171,2]
[340372034,1729110640522,-500.0,0.00019171,2]
[340372035,1729110640534,-500.0,0.00019171,2]
[340372036,1729110640543,-500.0,0.00019171,2]
[340372037,1729110640553,-633.91405466,0.00019171,2]
[340372038,1729110640562,-500.0,0.00019171,2]
[340372039,1729110640571,-500.0,0.00019171,2]
[340372040,1729110640581,-500.0,0.00019171,2]
[340372041,1729110640590,-500.0,0.00019171,2]
[340372042,1729110640599,-500.0,0.00019171,2]
[340372043,1729110640608,-500.0,0.00019171,2]
[340372044,1729110640618,-500.0,0.00019171,2]
[340372045,1729110640627,-500.0,0.00019171,2]
[340372046,1729110640636,-500.0,0.00019171,2]
[340372047,1729110640646,-500.0,0.00019171,2]
[340372048,1729110640655,-500.0,0.00019171,2]
[340372049,1729110640664,-500.0,0.00019171,2]
[340372050,1729110640673,-500.0,0.00019171,2]
[340372051,1729110640682,-223345.345903,0.00019172,3]
[340372052,1729110640691,-125421.140686,0.00019172,3]
[340372053,1729110640701,-500.0,0.00019172,2]
[340372054,1729110640710,-259.28741595,0.00019172,2]
[340372055,1729110640721,-234.1867271,0.00019172,2]
[340372056,1729110640731,-283.83646338,0.00019172,2]
[340372057,1729110640741,-500.0,0.00019172,2]
[340372058,1729110640750,-500.0,0.00019172,2]
[340372059,1729110640759,-287.09412493,0.00019172,2]
[340372060,1729110640769,-206.54655259,0.00019172,2]
[340372061,1729110640778,-500.0,0.00019173,2]
[340372062,1729110640787,-500.0,0.00019173,2]
[340372063,1729110640796,-500.0,0.00019173,2]
[340372064,1729110640805,-590.52304939,0.00019173,2]
[340372065,1729110640814,-500.52801195,0.00019173,2]
[340372066,1729110640823,-500.0,0.00019173,2]
[340372067,1729110640833,-111672.672951,0.00019173,3]
[340372068,1729110640842,-62710.5703429,0.00019173,3]
[340372069,1729110640851,-1952.17694548,0.00019174,2]
[340372070,1729110640859,-164.244536,0.00019178,2]
[340372071,1729110640869,-62710.5703429,0.00019182,3]
[340372072,1729110640878,-62710.5703429,0.00019182,3]
[340372073,1729110640887,-45354.74946301,0.00019192,2]
[340372074,1729110640896,-42680.22447996,0.00019192,2]
[340372075,1729110640906,-500.0,0.00019192,2]
[340372076,1729110640915,-17109.73,0.00019192,2]
[340372077,1729110640925,-17109.73,0.00019192,2]
[340372078,1729110640934,-17109.73,0.00019192,2]
[340372079,1729110640944,-17109.73,0.00019192,2]
[340372080,1729110640953,-17109.73,0.00019192,2]
[340372081,1729110640962,-12591.41240964,0.00019192,2]
[340372082,1729110640975,-4518.31759036,0.00019192,2]
[340372083,1729110640984,-17109.73,0.00019192,2]
[340372084,1729110640995,-17109.73,0.00019192,2]
[340372085,1729110641004,-17109.73,0.00019192,2]
[340372086,1729110641013,-1239.38381423,0.00019192,2]
[340372143,1729110873673,180.0,0.00027,60]
[340372180,1729111731821,4295.07694083,0.0002,12]
[340372209,1729111838629,-166.663615,0.00018233,2]
[340372210,1729111838639,-20851.41203318,0.000183,2]
[340372231,1729111840157,-6643.46676547,0.000183,2]
[340372233,1729111840167,-173.262188,0.00019035,2]
[340372235,1729111840176,-440.91973843,0.00019057,2]
[340372238,1729111840186,-440.91973842,0.00019058,2]
[340372240,1729111840195,-440.91973842,0.00019058,2]
[340372242,1729111840204,-1000.0,0.00019058,2]
[340372244,1729111840214,-728.92054991,0.00019058,2]
[340372246,1729111840223,-440.91973842,0.00019059,2]
[340372248,1729111840232,-440.91973842,0.00019059,2]
[340372250,1729111840242,-1651.05864643,0.00019069,2]
[340372252,1729111840251,-1952.17694548,0.00019081,2]
[340372254,1729111840262,-300.0,0.0001911,2]
[340372256,1729111840272,-300.0,0.0001911,2]
[340372258,1729111840282,-3374.0989846,0.00019111,2]
[340372260,1729111840292,-579.76,0.00019138,3]
[340372262,1729111840302,-483.13,0.00019138,3]
[340372264,1729111840311,-402.61,0.00019138,3]
[340372266,1729111840321,-201.3,0.00019138,3]
[340372267,1729111840333,-167.75,0.00019138,3]
[340372269,1729111840343,-503.29,0.00019138,3]
[340372271,1729111840353,-500.0,0.00019147,2]
[340372273,1729111840362,-500.0,0.00019147,2]
[340372293,1729111840589,-500.0,0.00019147,2]
[340372294,1729111840600,-500.0,0.00019147,2]
[340372295,1729111840612,-500.0,0.00019147,2]
[340372296,1729111840623,-500.0,0.00019147,2]
[340372297,1729111840633,-500.0,0.00019147,2]
[340372298,1729111840643,-500.0,0.00019147,2]
[340372299,1729111840652,-500.0,0.00019147,2]
[340372300,1729111840662,-500.0,0.00019147,2]
[340372301,1729111840672,-500.0,0.00019147,2]
[340372302,1729111840684,-500.0,0.00019147,2]
[340372303,1729111840696,-500.0,0.00019147,2]
[340372304,1729111840707,-500.0,0.00019147,2]
[340372305,1729111840717,-500.0,0.00019147,2]
[340372306,1729111840726,-500.0,0.00019147,2]
[340372307,1729111840735,-633.91405466,0.00019147,2]
[340372308,1729111840746,-500.0,0.00019147,2]
[340372309,1729111840755,-500.0,0.00019147,2]
[340372310,1729111840765,-500.0,0.00019147,2]
[340372311,1729111840775,-500.0,0.00019147,2]
[340372312,1729111840787,-500.0,0.00019147,2]
[340372313,1729111840798,-500.0,0.00019147,2]
[340372314,1729111840807,-500.0,0.00019147,2]
[340372315,1729111840818,-500.0,0.00019147,2]
[340372316,1729111840828,-167509.009427,0.00019148,3]
[340372317,1729111840838,-75252.6844114,0.00019148,3]
[340372318,1729111840850,-55836.3364757,0.00019149,3]
[340372319,1729111840862,-25084.2281371,0.00019149,3]
[340372320,1729111840873,-283.83646338,0.00019158,2]
[340372321,1729111840882,-500.0,0.00019158,2]
[340372322,1729111840892,-287.09412493,0.00019158,2]
[340372323,1729111840901,-234.1867271,0.00019158,2]
[340372324,1729111840911,-259.28741595,0.00019158,2]
[340372325,1729111840921,-500.0,0.00019158,2]
[340372326,1729111840932,-206.54655259,0.00019158,2]
[340372327,1729111840941,-500.0,0.00019158,2]
[340372328,1729111840951,-111672.672951,0.00019158,3]
[340372329,1729111840962,-50168.4562743,0.00019158,3]
[340372330,1729111840972,-25084.2281371,0.00019159,3]
[340372331,1729111840982,-500.0,0.00019161,2]
[340372332,1729111840991,-151.255128,0.00019168,2]
[340372333,1729111841002,-150505.368823,0.00019168,3]
[340372334,1729111841012,-47551.64668814,0.00019169,2]
[340372335,1729111841022,-500.0,0.00019173,2]
[340372336,1729111841031,-500.0,0.00019173,2]
[340372337,1729111841041,-500.0,0.00019173,2]
[340372338,1729111841053,-151.0,0.00019178,2]
[340372339,1729111841063,-151.0,0.00019178,2]
[340372340,1729111841072,-151.0,0.00019178,2]
[340372341,1729111841083,-151.0,0.00019178,2]
[340372342,1729111841094,-151.0,0.00019178,2]
[340372343,1729111841106,-151.0,0.00019178,2]
[340372344,1729111841115,-151.0,0.00019178,2]
[340372345,1729111841126,-419.755999,0.00019178,2]
[340372346,1729111841136,-419.755999,0.00019178,2]
[340372347,1729111841145,-419.755999,0.00019178,2]
[340372348,1729111841155,-419.755999,0.00019178,2]
[340372349,1729111841165,-151.0,0.00019178,2]
[340372350,1729111841174,-151.0,0.00019178,2]
[340372351,1729111841183,-216.651443,0.00019178,2]
[340372352,1729111841192,-216.651443,0.00019178,2]
[340372353,1729111841202,-151.0,0.00019178,2]
[340372354,1729111841211,-171.16763,0.00019178,2]
[340372355,1729111841220,-171.16763,0.00019178,2]
[340372356,1729111841229,-151.0,0.00019178,2]
[340372357,1729111841238,-151.0,0.00019178,2]
[340372358,1729111841248,-151.0,0.00019178,2]
[340372359,1729111841257,-152.500792,0.00019178,2]
[340372360,1729111841267,-151.0,0.00019178,2]
[340372361,1729111841276,-151.0,0.00019178,2]
[340372362,1729111841285,-212.298348,0.00019178,2]
[340372363,1729111841295,-212.298348,0.00019178,2]
[340372364,1729111841305,-151.0,0.00019178,2]
[340372365,1729111841314,-151.0,0.00019178,2]
[340372366,1729111841324,-151.0,0.00019178,2]
[340372367,1729111841333,-151.0,0.00019178,2]
[340372368,1729111841342,-151.0,0.00019178,2]
[340372369,1729111841352,-768.510272,0.00019178,2]
[340372370,1729111841361,-768.510272,0.00019178,2]
[340372371,1729111841371,-228.316931,0.00019178,2]
[340372372,1729111841380,-768.510272,0.00019178,2]
[340372373,1729111841390,-228.316931,0.00019178,2]
[340372374,1729111841400,-768.510272,0.00019178,2]
[340372375,1729111841413,-151.0,0.00019178,2]
[340372376,1729111841422,-151.0,0.00019178,2]
[340372377,1729111841432,-249.814594,0.00019178,2]
[340372378,1729111841441,-249.814594,0.00019178,2]
[340372379,1729111841450,-151.0,0.00019178,2]
[340372380,1729111841460,-151.0,0.00019178,2]
[340372381,1729111841469,-249.814594,0.00019178,2]
[340372382,1729111841480,-249.814594,0.00019178,2]
[340372383,1729111841489,-151.0,0.00019178,2]
[340372384,1729111841498,-151.0,0.00019178,2]
[340372385,1729111841508,-14731.11,0.00019178,2]
[340372386,1729111841517,-14731.11,0.00019178,2]
[340372387,1729111841527,-14731.11,0.00019178,2]
[340372388,1729111841536,-14731.11,0.00019178,2]
[340372389,1729111841547,-14731.11,0.00019178,2]
[340372390,1729111841561,-14731.11,0.00019178,2]
[340372391,1729111841570,-14731.11,0.00019178,2]
[340372392,1729111841579,-1313.48497466,0.00019178,2]
[340372393,1729111841592,-1197.56084802,0.00019178,2]
[340372438,1729111846213,-151.0,0.00019168,2]
[340372439,1729111846225,-357.89812367,0.00019173,2]
[340372472,1729113035117,-173.262188,0.0001792,2]
[340372473,1729113035127,-166.665141,0.00018054,2]
[340372474,1729113035136,-557.48687117,0.00018871,2]
[340372475,1729113035146,-425.21691202,0.00018871,2]
[340372476,1729113035156,-1000.0,0.00018872,2]
[340372477,1729113035169,-5933.63264024,0.00018873,2]
[340372478,1729113035180,-557.48687117,0.00018889,2]
[340372479,1729113035190,-557.48687117,0.00018907,2]
[340372480,1729113035200,-557.48687117,0.00018925,2]
[340372481,1729113035209,-557.48687117,0.00018943,2]
[340372482,1729113035218,-1731.4913189,0.00018943,2]
[340372483,1729113035228,-300.0,0.00018951,2]
[340372484,1729113035238,-300.0,0.00018951,2]
[340372485,1729113035248,-579.76,0.00018952,3]
[340372486,1729113035258,-289.88,0.00018952,3]
[340372487,1729113035267,-869.64,0.00018952,3]
[340372488,1729113035278,-500.0,0.00018961,2]
[340372489,1729113035288,-500.0,0.00018961,2]
[340372490,1729113035297,-500.0,0.00018961,2]
[340372491,1729113035307,-500.0,0.00018961,2]
[340372492,1729113035316,-500.0,0.00018961,2]
[340372493,1729113035326,-500.0,0.00018961,2]
[340372494,1729113035336,-500.0,0.00018961,2]
[340372495,1729113035346,-500.0,0.00018961,2]
[340372496,1729113035359,-500.0,0.00018961,2]
[340372497,1729113035369,-500.0,0.00018961,2]
[340372498,1729113035379,-500.0,0.00018961,2]
[340372499,1729113035392,-500.0,0.00018961,2]
[340372500,1729113035402,-500.0,0.00018961,2]
[340372501,1729113035413,-500.0,0.00018961,2]
[340372502,1729113035425,-633.91405466,0.00018961,2]
[340372503,1729113035434,-500.0,0.00018961,2]
[340372504,1729113035443,-500.0,0.00018961,2]
[340372505,1729113035452,-500.0,0.00018961,2]
[340372506,1729113035462,-500.0,0.00018961,2]
[340372507,1729113035471,-500.0,0.00018961,2]
[340372508,1729113035479,-500.0,0.00018961,2]
[340372509,1729113035488,-500.0,0.00018961,2]
[340372510,1729113035497,-500.0,0.00018961,2]
[340372511,1729113035507,-500.0,0.00018961,2]
[340372512,1729113035516,-500.0,0.00018961,2]
[340372513,1729113035527,-728.92054991,0.00018961,2]
[340372514,1729113035537,-84129.32624477,0.00018962,3]
[340372536,1729113040432,-201229.82037323,0.00018962,3]
[340372537,1729113040445,-500.0,0.00018973,2]
[340372538,1729113040455,-57071.8293237,0.00018976,3]
[340372539,1729113040467,-150.0,0.00018981,2]
[340372540,1729113040477,-17320.62889525,0.00018986,2]
[340372541,1729113040486,-166.665141,0.00018995,2]
[340372542,1729113040495,-153.0,0.00019,2]
[340372543,1729113040505,-500.0,0.00019,2]
[340372544,1729113040515,-153.0,0.00019,2]
[340372545,1729113040525,-301.9500594,0.00019,2]
[340372546,1729113040536,-153.0,0.00019,2]
[340372547,1729113040546,-420.6519278,0.00019,2]
[340372548,1729113040556,-500.0,0.00019,2]
[340372549,1729113040566,-500.0,0.00019,2]
[340372550,1729113040577,-259.28741595,0.00019,2]
[340372551,1729113040587,-234.1867271,0.00019,2]
[340372552,1729113040597,-287.09412493,0.00019,2]
[340372553,1729113040606,-500.0,0.00019,2]
[340372554,1729113040615,-206.54655259,0.00019,2]
[340372555,1729113040625,-283.83646338,0.00019,2]
[340372556,1729113040634,-420.3045756,0.00019,2]
[340372557,1729113040644,-153.0,0.00019,2]
[340372558,1729113040653,-328439.03522696,0.00019001,2]
[340372559,1729113040663,-210.4166343,0.00019051,2]
[340372560,1729113040673,-414.3746803,0.00019051,2]
[340372561,1729113040682,-1952.17694548,0.00019068,2]
[340372562,1729113040691,-414.3746803,0.00019068,2]
[340372563,1729113040701,-210.4166343,0.00019068,2]
[340372564,1729113040710,-500.0,0.00019073,2]
[340372565,1729113040719,-211.87317386,0.00019073,2]
[340372566,1729113040728,-500.0,0.00019073,2]
[340372567,1729113040739,-500.0,0.00019073,2]
[340372568,1729113040748,-500.0,0.00019073,2]
[340372569,1729113040758,-502.75837109,0.00019073,2]
[340372570,1729113040768,-585.79150865,0.00019073,2]
[340372571,1729113040903,-500.0,0.00019073,2]
[340372572,1729113040928,-500.0,0.00019073,2]
[340372573,1729113040937,-500.63383643,0.00019073,2]
[340372574,1729113040949,-501.72657304,0.00019073,2]
[340372575,1729113040959,-500.0,0.00019073,2]
[340372576,1729113040969,-500.0,0.00019073,2]
[340372577,1729113040979,-500.0,0.00019073,2]
[340372578,1729113040988,-590.52304939,0.00019073,2]
[340372579,1729113040998,-153.0,0.000191,2]
[340372580,1729113041008,-414.3746803,0.000191,2]
[340372581,1729113041018,-153.0,0.000191,2]
[340372582,1729113041028,-414.3746803,0.000191,2]
[340372583,1729113041037,-153.0,0.000191,2]
[340372584,1729113041047,-414.3746803,0.000191,2]
[340372585,1729113041056,-414.3746803,0.000191,2]
[340372586,1729113041066,-508.31820193,0.000191,2]
[340372587,1729113041076,-1000.0,0.000191,2]
[340372588,1729113041087,-500.0,0.000191,2]
[340372589,1729113041096,-500.0,0.000191,2]
[340372590,1729113041106,-500.0,0.000191,2]
[340372591,1729113041115,-500.0,0.000191,2]
[340372592,1729113041124,-346.60969467,0.000191,2]
[340372593,1729113041133,-1000.0,0.000191,2]
[340372594,1729113041143,-502.44188632,0.000191,2]
[340372595,1729113041155,-1500.0,0.0001914,2]
[340372596,1729113041165,-1370.29469908,0.0001914,2]
[340372597,1729113041174,-287.50632,0.00019168,2]
[340372598,1729113041183,-151.0,0.00019168,2]
[340372599,1729113041193,-287.50632,0.00019168,2]
[340372600,1729113041204,-151.0,0.00019168,2]
[340372601,1729113041213,-151.0,0.00019168,2]
[340372602,1729113041224,-151.0,0.00019168,2]
[340372603,1729113041233,-151.0,0.00019168,2]
[340372604,1729113041245,-500.0,0.00019173,2]
[340372605,1729113041256,-500.0,0.00019173,2]
[340372606,1729113041265,-500.0,0.00019173,2]
[340372607,1729113041274,-500.0,0.00019173,2]
[340372608,1729113041284,-500.0,0.00019173,2]
[340372609,1729113041294,-500.0,0.00019173,2]
[340372610,1729113041305,-469.84415494,0.00019173,2]
[340372611,1729113041316,-500.0,0.00019173,2]
[340372612,1729113041326,-500.0,0.00019173,2]
[340372613,1729113041335,-449.63169246,0.00019173,2]
[340372614,1729113041344,-500.0,0.00019173,2]
[340372615,1729113041355,-500.0,0.00019173,2]
[340372616,1729113041364,-500.0,0.00019173,2]
[340372617,1729113041373,-500.0,0.00019173,2]
[340372618,1729113041383,-500.0,0.00019173,2]
[340372619,1729113041395,-500.0,0.00019173,2]
[340372620,1729113041407,-160.05816078,0.00019173,2]
[340372621,1729113041417,-509.23351613,0.00019173,2]
[340372622,1729113041427,-500.0,0.00019173,2]
[340372623,1729113041438,-500.0,0.00019173,2]
[340372624,1729113041448,-500.0,0.00019173,2]
[340372625,1729113041459,-500.0,0.00019173,2]
[340372626,1729113041469,-303.08778181,0.00019173,2]
[340372627,1729113041478,-500.0,0.00019173,2]
[340372628,1729113041487,-151.0,0.00019178,2]
[340372629,1729113041497,-151.0,0.00019178,2]
[340372630,1729113041508,-287.50632,0.00019178,2]
[340372631,1729113041517,-287.50632,0.00019178,2]
[340372632,1729113041528,-151.0,0.00019178,2]
[340372633,1729113041538,-172.888261,0.00019178,2]
[340372634,1729113041547,-287.50632,0.00019178,2]
[340372635,1729113041557,-287.50632,0.00019178,2]
[340372636,1729113041567,-151.0,0.00019178,2]
[340372637,1729113041577,-151.0,0.00019178,2]
[340372638,1729113041587,-151.0,0.00019178,2]
[340372639,1729113041597,-151.0,0.00019178,2]
[340372640,1729113041608,-151.0,0.00019178,2]
[340372641,1729113041618,-151.0,0.00019178,2]
[340372642,1729113041628,-151.0,0.00019178,2]
[340372643,1729113041638,-165.212243,0.00019178,2]
[340372644,1729113041648,-151.0,0.00019178,2]
[340372645,1729113041657,-151.0,0.00019178,2]
[340372646,1729113041667,-264.733392,0.00019178,2]
[340372647,1729113041677,-151.0,0.00019178,2]
[340372648,1729113041686,-230.169107,0.00019178,2]
[340372649,1729113041696,-151.0,0.00019178,2]
[340372650,1729113041706,-151.0,0.00019178,2]
[340372651,1729113041715,-151.0,0.00019178,2]
[340372652,1729113041725,-151.0,0.00019178,2]
[340372653,1729113041735,-151.0,0.00019178,2]
[340372654,1729113041744,-151.0,0.00019178,2]
[340372655,1729113041754,-151.0,0.00019178,2]
[340372656,1729113041764,-151.0,0.00019178,2]
[340372657,1729113041775,-227.51258,0.00019178,2]
[340372658,1729113041785,-227.51258,0.00019178,2]
[340372659,1729113041794,-227.51258,0.00019178,2]
[340372660,1729113041804,-227.51258,0.00019178,2]
[340372661,1729113041813,-151.0,0.00019178,2]
[340372662,1729113041823,-151.0,0.00019178,2]
[340372663,1729113041833,-151.0,0.00019178,2]
[340372664,1729113041843,-152.483806,0.00019178,2]
[340372665,1729113041853,-171.16763,0.00019178,2]
[340372666,1729113041863,-171.16763,0.00019178,2]
[340372667,1729113041873,-171.16763,0.00019178,2]
[340372668,1729113041882,-171.16763,0.00019178,2]
[340372669,1729113041893,-391.345267,0.00019178,2]
[340372670,1729113041902,-391.345267,0.00019178,2]
[340372671,1729113041913,-391.345267,0.00019178,2]
[340372672,1729113041924,-391.345267,0.00019178,2]
[340372673,1729113041934,-151.0,0.00019178,2]
[340372674,1729113041944,-151.0,0.00019178,2]
[340372675,1729113041956,-212.298348,0.00019178,2]
[340372676,1729113041965,-212.298348,0.00019178,2]
[340372677,1729113041977,-545.311702,0.00019178,2]
[340372678,1729113041986,-545.311702,0.00019178,2]
[340372679,1729113041995,-212.298348,0.00019178,2]
[340372680,1729113042004,-212.298348,0.00019178,2]
[340372681,1729113042013,-212.298348,0.00019178,2]
[340372682,1729113042022,-545.311702,0.00019178,2]
[340372683,1729113042034,-545.311702,0.00019178,2]